[Event "POL-chT 1st League 2020"]
[Site "Ustron"]
[Date "2020.09.05"]
[Round "1.30"]
[White "Czerwinska, Milena"]
[Black "Przezdziecka, Ewa"]
[Result "0-1"]
[ECO "B15"]
[WhiteElo "2010"]
[BlackElo "2166"]
[Annotator "ChessBase"]
[PlyCount "104"]
[EventDate "2020.09.05"]
[EventType "team-tourn"]
[EventCountry "POL"]
[SourceTitle "playchess.com"]
[Source "ChessBase"]
[SourceQuality "1"]
[TimeControl "40/5400+30:1800+30"]

1. e4 {[%emt 0:00:00]} c6 {[%emt 0:00:00]} 2. d4 {[%emt 0:00:00]} d5 {[%emt 0:00:00]} 3. Nd2 {[%emt 0:00:00]} dxe4 {[%emt 0:00:07]} 4. Nxe4 {[%emt 0:00:04]} Nf6 {[%emt 0:00:06]} 5. Nxf6+ {[%emt 0:00:27]} exf6 {[%emt 0:00:07]} 6. Bf4 {[%emt 0:02:45]} Bd6 {[%emt 0:03:54]} 7. Qd2 {[%emt 0:10:15]} Qe7+ {[%emt 0:10:28]} 8. Be3 {[%emt 0:03:58]} Bf5 {[%emt 0:07:33]} 9. Bd3 {[%emt 0:08:06]} Bxd3 {[%emt 0:03:57]} 10. Qxd3 {[%emt 0:00:47]} Na6 {[%emt 0:02:21]} 11. a3 {[%emt 0:05:28]} O-O {[%emt 0:04:52]} 12. Ne2 {[%emt 0:03:20]} Nc7 {[%emt 0:06:12]} 13. c4 {[%emt 0:22:16]} Rad8 {[%emt 0:10:54]} 14. Qc2 {[%emt 0:02:35]} Ne6 {[%emt 0:05:28]} 15. O-O {[%emt 0:00:47]} Bb8 {[%emt 0:04:56]} 16. Rfd1 {[%emt 0:16:11]} Rfe8 {[%emt 0:06:45]} 17. Rac1 {[%emt 0:04:27]} Ng5 {[%emt 0:07:02]} 18. Ng3 {[%emt 0:03:26]} g6 {[%emt 0:07:12]} 19. d5 {[%emt 0:04:07]} h5 {[%emt 0:05:44]} 20. h4 {[%emt 0:01:54]} Nh3+ {[%emt 0:09:17]} 21. gxh3 {[%emt 0:05:56]} Bxg3 {[%emt 0:00:06]} 22. fxg3 {[%emt 0:00:15]} Qxe3+ {[%emt 0:00:05]} 23. Qf2 {[%emt 0:00:15]} cxd5 {[%emt 0:01:51]} 24. cxd5 {[%emt 0:01:55]} Rxd5 {[%emt 0:01:52]} 25. Qxe3 {[%emt 0:01:08]} Rxd1+ {[%emt 0:00:05]} 26. Rxd1 {[%emt 0:00:20]} Rxe3 {[%emt 0:00:04]} 27. Kf2 {[%emt 0:01:21]} Rb3 {[%emt 0:00:17]} 28. Rd2 {[%emt 0:00:04]} f5 {[%emt 0:00:44]} 29. Kg2 {[%emt 0:00:17]} Kg7 {[%emt 0:00:14]} 30. Rc2 {[%emt 0:00:20]} Kf6 {[%emt 0:01:36]} 31. Re2 {[%emt 0:00:06]} Rd3 {[%emt 0:00:26]} 32. Kh2 {[%emt 0:01:01]} f4 {[%emt 0:01:04]} 33. Rf2 {[%emt 0:01:46]} Ke6 {[%emt 0:00:27]} 34. Re2+ {[%emt 0:00:47]} Re3 {[%emt 0:00:30]} 35. Rc2 {[%emt 0:00:18]} Rxg3 {[%emt 0:00:19]} 36. Rc4 {[%emt 0:00:33]} Rb3 {[%emt 0:00:16]} 37. Rxf4 {[%emt 0:00:17]} Rxb2+ {[%emt 0:00:08]} 38. Kg1 {[%emt 0:00:05]} Rb3 {[%emt 0:00:13]} 39. Ra4 {[%emt 0:00:08]} a6 {[%emt 0:00:23]} 40. Kg2 {[%emt 0:00:00]} Ke5 {[%emt 0:00:00]} 41. Kh2 {[%emt 0:00:25]} Rd3 {[%emt 0:06:18]} 42. Kg2 {[%emt 0:01:00]} Rd4 {[%emt 0:00:25]} 43. Ra5+ {[%emt 0:00:16]} Kf4 {[%emt 0:02:18]} 44. Rc5 {[%emt 0:00:18]} Rd2+ {[%emt 0:03:08]} 45. Kg1 {[%emt 0:00:28]} Kg3 {[%emt 0:00:36]} 46. Rc3+ {[%emt 0:00:08]} Kxh4 {[%emt 0:00:13]} 47. Rc7 {[%emt 0:00:09]} b5 48. Rxf7 {[%emt 0:00:09]} Rd3 {[%emt 0:01:58]} 49. Rf6 {[%emt 0:00:26]} Rxa3 {[%emt 0:00:09]} 50. Kg2 {[%emt 0:00:33]} g5 {[%emt 0:00:23]} 51. Rd6 {[%emt 0:00:24]} Ra2+ {[%emt 0:00:08]} 52. Kf3 {[%emt 0:00:10]} Kxh3 {[%emt 0:00:18]} 0-1

[Event "POL-chT 1st League 2020"]
[Site "Ustron"]
[Date "2020.09.06"]
[Round "2.4"]
[White "Szyszylo, Rafal"]
[Black "Klepek, Witold"]
[Result "0-1"]
[ECO "C02"]
[WhiteElo "2188"]
[BlackElo "2159"]
[Annotator "RC"]
[PlyCount "92"]
[EventDate "2020.09.05"]
[EventType "team-tourn"]
[EventCountry "POL"]
[SourceTitle "playchess.com"]
[Source "ChessBase"]
[SourceQuality "1"]
[TimeControl "40/5400+30:1800+30"]

1. e4 {[%emt 0:00:00]} e6 {[%emt 0:00:00]} 2. d4 {[%emt 0:00:00]} d5 {[%emt 0:00:00]} 3. e5 {[%emt 0:00:12]} c5 {[%emt 0:00:00]} 4. c3 {[%emt 0:00:18]} Nc6 {[%emt 0:00:00]} 5. Nf3 {[%emt 0:00:40]} Bd7 {[%emt 0:00:04]} 6. a3 {[%emt 0:00:58]} c4 {[%emt 0:00:05]} 7. g3 {[%emt 0:04:47]} Na5 {[%emt 0:00:12]} 8. Nbd2 {[%emt 0:00:10]} Bc6 {[%emt 0:00:07]} 9. Bg2 {[%emt 0:00:37]} Qd7 {[%emt 0:00:17]} 10. O-O {[%emt 0:01:04]} Ba4 {[%emt 0:00:30]} 11. Qe2 {[%emt 0:00:31]} O-O-O {[%emt 0:00:13]} 12. Ne1 {[%emt 0:06:49]} Kb8 {[%emt 0:07:53]} 13. f4 {[%emt 0:02:09]} Ne7 {[%emt 0:04:08]} 14. Rf2 {[%emt 0:04:27]} Nec6 {[%emt 0:09:54]} 15. Nf1 {[%emt 0:03:38]} Nb3 {[%emt 0:02:48]} 16. Rb1 {[%emt 0:00:58]} Ncxd4 {[%emt 0:26:47]} 17. cxd4 {[%emt 0:00:08]} Nxd4 {[%emt 0:00:03]} 18. Qh5 {[%emt 0:09:55]} g6 {[%emt 0:00:52]} 19. Qh3 {[%emt 0:00:07]} Nb3 {[%emt 0:01:55]} 20. Rf3 {[%emt 0:38:44]} Bc5+ {[%emt 0:04:07]} 21. Kh1 {[%emt 0:01:38]} Qb5 {[%emt 0:07:59]} 22. Bd2 {[%emt 0:15:34]} d4 {[%emt 0:02:50]} 23. g4 {[%emt 0:00:12]} d3 {[%emt 0:04:05]} 24. f5 {[%emt 0:03:28]} Nd4 {[%emt 0:00:57]} 25. fxe6 {[%emt 0:04:52]} Nxf3 {[%emt 0:01:30]} 26. Nxf3 {[%emt 0:00:19]} fxe6 {[%emt 0:00:29]} 27. Bc3 {[%emt 0:00:40]} Qa6 {[%emt 0:05:14]} 28. N1d2 {[%emt 0:00:06]} Bc6 {[%emt 0:00:30]} 29. Ng5 {[%emt 0:00:35]} Rdf8 {[%emt 0:00:51]} 30. Nge4 {[%emt 0:00:40]} Be7 {[%emt 0:00:40]} 31. Nf6 {[%emt 0:00:26]} g5 {[%emt 0:03:33]} 32. Bxc6 {[%emt 0:00:40]} Qxc6+ {[%emt 0:00:02]} 33. Qg2 {[%emt 0:00:19]} Rc8 {[%emt 0:01:41]} 34. Re1 {[%emt 0:00:23]} h6 {[%emt 0:01:20]} 35. Re4 {[%emt 0:00:53]} b5 {[%emt 0:00:13]} 36. Qf2 {[%emt 0:00:32]} Bc5 {[%emt 0:00:26]} 37. Bd4 {[%emt 0:00:19]} Rhd8 {[%emt 0:01:21]} 38. Bxc5 {[%emt 0:00:14]} Qxc5 {[%emt 0:00:03]} 39. Qf3 {[%emt 0:00:49]} c3 {[%emt 0:01:31]} 40. bxc3 Qxc3 {[%emt 0:00:00]} 41. Rb4 {[%emt 0:16:26]} Qc1+ {[%emt 0:01:44]} 42. Nf1 {[%emt 0:00:05]} a6 {[%emt 0:01:12]} 43. Ne4 {[%emt 0:04:18]} d2 {[%emt 0:01:56]} 44. Qf2 {[%emt 0:00:34]} Qxf1+ {[%emt 0:01:14]} 45. Qxf1 {[%emt 0:00:41]} d1=Q {[%emt 0:00:06]} 46. Kg2 {[%emt 0:04:45]} Rc2+ {[%emt 0:00:29]} 0-1

[Event "POL-chT 1st League 2020"]
[Site "Ustron"]
[Date "2020.09.06"]
[Round "2.27"]
[White "Kozak, Antoni"]
[Black "Sanz Wawer, Daniel"]
[Result "1/2-1/2"]
[ECO "B13"]
[WhiteElo "2347"]
[BlackElo "2325"]
[Annotator "RC"]
[PlyCount "68"]
[EventDate "2020.09.05"]
[EventType "team-tourn"]
[EventCountry "POL"]
[SourceTitle "playchess.com"]
[Source "ChessBase"]
[SourceQuality "1"]
[TimeControl "40/5400+30:1800+30"]

1. e4 {[%emt 0:00:00]} c6 {[%emt 0:00:00]} 2. d4 {[%emt 0:00:00]} d5 {[%emt 0:00:00]} 3. exd5 {[%emt 0:00:00]} cxd5 {[%emt 0:00:00]} 4. Bd3 {[%emt 0:00:00]} Nc6 {[%emt 0:00:02]} 5. c3 {[%emt 0:00:00]} Nf6 {[%emt 0:02:02]} 6. Bf4 {[%emt 0:00:15]} Bg4 {[%emt 0:00:56]} 7. Qb3 {[%emt 0:00:06]} Qc8 {[%emt 0:02:06]} 8. Nd2 {[%emt 0:02:26]} e6 {[%emt 0:01:01]} 9. Ngf3 {[%emt 0:00:09]} Be7 {[%emt 0:00:42]} 10. O-O {[%emt 0:05:03]} O-O {[%emt 0:00:32]} 11. Ne5 {[%emt 0:09:42]} Bh5 {[%emt 0:05:41]} 12. Ndf3 {[%emt 0:05:26]} Nxe5 {[%emt 0:06:04]} 13. Nxe5 {[%emt 0:00:27]} Nd7 {[%emt 0:06:01]} 14. Qc2 {[%emt 0:28:01]} Nxe5 {[%emt 0:03:16]} 15. Bxh7+ {[%emt 0:06:27]} Kh8 {[%emt 0:00:05]} 16. dxe5 {[%emt 0:00:03]} Qc4 {[%emt 0:13:22]} 17. Be3 {[%emt 0:01:55]} g6 {[%emt 0:07:36]} 18. f3 {[%emt 0:00:05]} Kxh7 {[%emt 0:05:50]} 19. g4 {[%emt 0:00:38]} Bxg4 {[%emt 0:02:45]} 20. fxg4 {[%emt 0:00:08]} Qxg4+ {[%emt 0:01:00]} 21. Kh1 {[%emt 0:00:05]} f5 {[%emt 0:06:49]} 22. exf6 {[%emt 0:00:22]} Rxf6 {[%emt 0:05:12]} 23. Rxf6 {[%emt 0:01:26]} Bxf6 24. Rf1 {[%emt 0:00:09]} Rf8 {[%emt 0:16:56]} 25. Bxa7 {[%emt 0:15:26]} Bg7 {[%emt 0:02:56]} 26. Rxf8 {[%emt 0:01:07]} Bxf8 {[%emt 0:00:04]} 27. Bd4 {[%emt 0:04:45]} Bh6 {[%emt 0:03:02]} 28. Qb3 {[%emt 0:02:40]} Qe4+ {[%emt 0:02:19]} 29. Kg1 {[%emt 0:00:04]} Be3+ {[%emt 0:02:24]} 30. Bxe3 {[%emt 0:00:18]} Qxe3+ {[%emt 0:00:04]} 31. Kg2 {[%emt 0:00:03]} Qe2+ {[%emt 0:00:16]} 32. Kg3 {[%emt 0:00:25]} Qe3+ {[%emt 0:00:31]} 33. Kg2 {[%emt 0:00:04]} Qe2+ {[%emt 0:00:39]} 34. Kg3 {[%emt 0:00:05]} Qe3+ {[%emt 0:00:34]} 1/2-1/2

[Event "POL-chT 1st League 2020"]
[Site "Ustron"]
[Date "2020.09.07"]
[Round "3.2"]
[White "Wiewiora, Eneasz"]
[Black "Chylewski, Patryk"]
[Result "1/2-1/2"]
[ECO "B22"]
[WhiteElo "2346"]
[BlackElo "2324"]
[Annotator "ChessBase"]
[PlyCount "32"]
[EventDate "2020.09.05"]
[EventType "team-tourn"]
[EventCountry "POL"]
[SourceTitle "playchess.com"]
[Source "ChessBase"]
[SourceQuality "1"]
[WhiteTeam "SSz Gminy Pawlowice"]
[BlackTeam "KS LAURA Chylice"]
[WhiteTeamCountry "POL"]
[BlackTeamCountry "POL"]
[TimeControl "40/5400+30:1800+30"]

1. e4 {[%emt 0:00:00]} c5 {[%emt 0:00:00]} 2. c3 {[%emt 0:00:00]} Nf6 {[%emt 0:00:00]} 3. e5 {[%emt 0:00:00]} Nd5 {[%emt 0:00:00]} 4. d4 {[%emt 0:00:00]} cxd4 {[%emt 0:00:00]} 5. cxd4 {[%emt 0:00:00]} e6 {[%emt 0:00:00]} 6. Nf3 {[%emt 0:00:00]} d6 {[%emt 0:00:04]} 7. a3 {[%emt 0:00:00]} Bd7 {[%emt 0:00:04]} 8. Bd3 {[%emt 0:00:00]} Bc6 {[%emt 0:00:05]} 9. O-O {[%emt 0:00:03]} Nd7 {[%emt 0:00:03]} 10. Qe2 {[%emt 0:10:24]} dxe5 {[%emt 0:00:09]} 11. Nxe5 {[%emt 0:00:11]} Nxe5 {[%emt 0:01:21]} 12. dxe5 {[%emt 0:00:08]} Qh4 {[%emt 0:06:06]} 13. Bd2 {[%emt 0:09:11]} a6 {[%emt 0:19:23]} 14. Nc3 {[%emt 0:06:17]} Nxc3 {[%emt 0:06:03]} 15. Bxc3 {[%emt 0:00:05]} Bc5 {[%emt 0:06:07]} 16. g3 {[%emt 0:02:26]} Qe7 {[%emt 0:11:44]} 1/2-1/2

[Event "POL-chT 1st League 2020"]
[Site "Ustron"]
[Date "2020.09.07"]
[Round "3.3"]
[White "Kokoszczynski, Jan"]
[Black "Rawicz, Karol"]
[Result "1/2-1/2"]
[ECO "A42"]
[WhiteElo "2231"]
[BlackElo "2225"]
[Annotator "ChessBase"]
[PlyCount "57"]
[EventDate "2020.09.05"]
[EventType "team-tourn"]
[EventCountry "POL"]
[SourceTitle "playchess.com"]
[Source "ChessBase"]
[SourceQuality "1"]
[WhiteTeam "KS LAURA Chylice"]
[BlackTeam "SSz Gminy Pawlowice"]
[WhiteTeamCountry "POL"]
[BlackTeamCountry "POL"]
[TimeControl "40/5400+30:1800+30"]

1. d4 {[%emt 0:00:00]} g6 {[%emt 0:00:16]} 2. c4 {[%emt 0:00:50]} Bg7 {[%emt 0:00:09]} 3. Nc3 {[%emt 0:00:14]} d6 {[%emt 0:00:10]} 4. e4 {[%emt 0:05:05]} Nc6 {[%emt 0:03:49]} 5. Be3 {[%emt 0:00:07]} e5 {[%emt 0:00:15]} 6. d5 {[%emt 0:00:05]} Nd4 {[%emt 0:08:24]} 7. Nge2 {[%emt 0:00:19]} Nxe2 {[%emt 0:01:51]} 8. Bxe2 {[%emt 0:00:06]} f5 {[%emt 0:01:38]} 9. exf5 {[%emt 0:00:06]} Bxf5 {[%emt 0:01:40]} 10. g4 {[%emt 0:00:05]} Bd7 {[%emt 0:01:02]} 11. h4 {[%emt 0:01:08]} Qe7 {[%emt 0:02:46]} 12. Ne4 {[%emt 0:32:08]} Nf6 {[%emt 0:06:06]} 13. f3 {[%emt 0:05:26]} Nxe4 {[%emt 0:03:08]} 14. fxe4 {[%emt 0:00:16]} h6 {[%emt 0:13:30]} 15. Qd2 {[%emt 0:01:30]} Bf6 {[%emt 0:00:23]} 16. Bf2 {[%emt 0:06:51]} a5 {[%emt 0:00:45]} 17. O-O-O {[%emt 0:02:31]} Kf7 {[%emt 0:02:05]} 18. Kb1 {[%emt 0:02:31]} Kg7 {[%emt 0:04:43]} 19. Rh2 {[%emt 0:04:42]} a4 {[%emt 0:01:45]} 20. Rdh1 {[%emt 0:06:26]} Kg8 {[%emt 0:11:01]} 21. Be3 {[%emt 0:01:14]} Bg7 {[%emt 0:00:07]} 22. Rf1 {[%emt 0:02:56]} Kh7 {[%emt 0:00:50]} 23. g5 {[%emt 0:04:04]} h5 {[%emt 0:00:09]} 24. Rhf2 {[%emt 0:02:08]} Rhf8 {[%emt 0:03:30]} 25. Rxf8 {[%emt 0:12:02]} Bxf8 {[%emt 0:00:02]} 26. Qb4 {[%emt 0:02:01]} b6 {[%emt 0:00:43]} 27. Rf2 {[%emt 0:01:13]} Kg7 {[%emt 0:03:26]} 28. Qe1 {[%emt 0:00:56]} Qe8 {[%emt 0:00:30]} 29. Qf1 {[%emt 0:03:43]} 1/2-1/2

[Event "POL-chT 1st League 2020"]
[Site "Ustron"]
[Date "2020.09.07"]
[Round "3.4"]
[White "Klepek, Witold"]
[Black "Praczukowski, Stanislaw"]
[Result "1/2-1/2"]
[ECO "B22"]
[WhiteElo "2159"]
[BlackElo "2173"]
[Annotator "NA"]
[PlyCount "32"]
[EventDate "2020.09.05"]
[EventType "team-tourn"]
[EventCountry "POL"]
[SourceTitle "playchess.com"]
[Source "ChessBase"]
[SourceQuality "1"]
[WhiteTeam "SSz Gminy Pawlowice"]
[BlackTeam "KS LAURA Chylice"]
[WhiteTeamCountry "POL"]
[BlackTeamCountry "POL"]
[TimeControl "40/5400+30:1800+30"]

1. e4 {[%emt 0:00:00]} c5 {[%emt 0:00:00]} 2. c3 {[%emt 0:00:00]} Nf6 {[%emt 0:00:00]} 3. e5 {[%emt 0:00:02]} Nd5 {[%emt 0:00:12]} 4. d4 {[%emt 0:00:46]} cxd4 {[%emt 0:00:16]} 5. cxd4 {[%emt 0:01:16]} d6 {[%emt 0:02:24]} 6. Nf3 {[%emt 0:01:51]} Nc6 {[%emt 0:00:44]} 7. Bc4 {[%emt 0:07:46]} Nb6 {[%emt 0:01:00]} 8. Bb5 {[%emt 0:02:11]} dxe5 {[%emt 0:01:35]} 9. Nxe5 {[%emt 0:01:37]} Bd7 $1 {[%emt 0:00:11]} 10. Nxd7 {[%emt 0:12:01]} Qxd7 {[%emt 0:01:53]} 11. Nc3 {[%emt 0:00:28]} Rd8 {[%emt 0:04:03]} 12. O-O {[%emt 0:03:31]} e6 $11 {[%emt 0:01:15]} 13. Bg5 {[%emt 0:01:44]} Be7 {[%emt 0:02:48]} 14. Bxe7 {[%emt 0:00:41]} Qxe7 {[%emt 0:00:09]} 15. Bxc6+ {[%emt 0:00:18]} bxc6 {[%emt 0:00:08]} 16. Qf3 {[%emt 0:01:58]} O-O {[%emt 0:15:59]} 1/2-1/2

[Event "POL-chT 1st League 2020"]
[Site "Ustron"]
[Date "2020.09.07"]
[Round "3.5"]
[White "Redzisz, Michal"]
[Black "Sapeta, Robert"]
[Result "1-0"]
[ECO "A56"]
[WhiteElo "2164"]
[BlackElo "1882"]
[Annotator "ChessBase"]
[PlyCount "103"]
[EventDate "2020.09.05"]
[EventType "team-tourn"]
[EventCountry "POL"]
[SourceTitle "playchess.com"]
[Source "ChessBase"]
[SourceQuality "1"]
[WhiteTeam "KS LAURA Chylice"]
[BlackTeam "SSz Gminy Pawlowice"]
[WhiteTeamCountry "POL"]
[BlackTeamCountry "POL"]
[TimeControl "40/5400+30:1800+30"]

1. d4 {[%emt 0:00:00]} Nf6 {[%emt 0:00:00]} 2. c4 {[%emt 0:00:00]} c5 {[%emt 0:00:00]} 3. d5 {[%emt 0:00:00]} Ne4 {[%emt 0:00:00]} 4. f3 {[%emt 0:00:17]} Qa5+ {[%emt 0:00:05]} 5. Nd2 {[%emt 0:00:02]} Nf6 {[%emt 0:03:57]} 6. e4 {[%emt 0:00:06]} d6 {[%emt 0:00:16]} 7. Bd3 {[%emt 0:05:08]} b5 {[%emt 0:05:33]} 8. cxb5 {[%emt 0:02:52]} e6 {[%emt 0:02:50]} 9. Ne2 {[%emt 0:21:20]} Nbd7 {[%emt 0:47:46]} 10. O-O {[%emt 0:04:56]} exd5 {[%emt 0:05:30]} 11. exd5 {[%emt 0:00:09]} Be7 {[%emt 0:03:36]} 12. Nc4 {[%emt 0:01:37]} Qc7 {[%emt 0:00:05]} 13. Nc3 {[%emt 0:12:03]} O-O {[%emt 0:04:25]} 14. Re1 {[%emt 0:13:02]} Re8 {[%emt 0:04:24]} 15. Bf4 {[%emt 0:01:35]} Bf8 {[%emt 0:04:18]} 16. Rxe8 {[%emt 0:03:19]} Nxe8 {[%emt 0:00:07]} 17. a4 {[%emt 0:02:07]} Ne5 {[%emt 0:08:17]} 18. Bf1 {[%emt 0:08:27]} Nxc4 {[%emt 0:00:34]} 19. Bxc4 {[%emt 0:00:03]} Bf5 {[%emt 0:00:42]} 20. Bd3 {[%emt 0:02:56]} Bd7 {[%emt 0:01:28]} 21. Qd2 {[%emt 0:03:11]} Nf6 {[%emt 0:02:45]} 22. Bg5 {[%emt 0:02:54]} Ne8 {[%emt 0:00:36]} 23. Rc1 {[%emt 0:03:02]} h6 {[%emt 0:00:20]} 24. Be3 {[%emt 0:01:30]} Qd8 {[%emt 0:00:27]} 25. Ne4 {[%emt 0:02:54]} f5 {[%emt 0:00:05]} 26. Ng3 {[%emt 0:01:07]} Qf6 {[%emt 0:00:24]} 27. f4 {[%emt 0:01:33]} g6 {[%emt 0:00:05]} 28. Qc3 {[%emt 0:02:01]} Qf7 {[%emt 0:00:05]} 29. b4 {[%emt 0:00:27]} Bg7 {[%emt 0:00:18]} 30. Qd2 {[%emt 0:00:17]} cxb4 {[%emt 0:00:24]} 31. Qxb4 {[%emt 0:00:08]} Kh7 {[%emt 0:00:10]} 32. Bc4 {[%emt 0:00:38]} Qe7 {[%emt 0:01:35]} 33. Re1 {[%emt 0:01:15]} Qf8 {[%emt 0:00:56]} 34. a5 {[%emt 0:01:43]} Nf6 {[%emt 0:01:03]} 35. h3 {[%emt 0:00:35]} h5 {[%emt 0:01:16]} 36. b6 {[%emt 0:02:00]} axb6 {[%emt 0:00:23]} 37. axb6 {[%emt 0:00:03]} h4 {[%emt 0:00:49]} 38. Ne2 {[%emt 0:00:10]} Qe8 {[%emt 0:00:34]} 39. Bd4 {[%emt 0:02:42]} Ne4 {[%emt 0:02:38]} 40. b7 {[%emt 0:00:00]} Bxd4+ {[%emt 0:00:00]} 41. Nxd4 {[%emt 0:00:45]} Rb8 {[%emt 0:03:50]} 42. Qb6 {[%emt 0:09:04]} Qh8 {[%emt 0:12:15]} 43. Nc6 {[%emt 0:12:42]} Qc3 {[%emt 0:08:52]} 44. Rxe4 {[%emt 0:00:53]} fxe4 {[%emt 0:00:43]} 45. Nxb8 {[%emt 0:01:28]} Qe1+ {[%emt 0:00:42]} 46. Bf1 {[%emt 0:04:28]} e3 {[%emt 0:01:19]} 47. Qxd6 {[%emt 0:00:49]} Bb5 {[%emt 0:01:12]} 48. Qe7+ {[%emt 0:01:09]} Kh6 {[%emt 0:01:28]} 49. Qf8+ {[%emt 0:00:09]} Kh7 {[%emt 0:00:05]} 50. Nd7 {[%emt 0:00:17]} Qxf1+ {[%emt 0:04:51]} 51. Kh2 {[%emt 0:00:03]} Bxd7 {[%emt 0:00:48]} 52. b8=Q {[%emt 0:00:23]} 1-0

[Event "POL-chT 1st League 2020"]
[Site "Ustron"]
[Date "2020.09.07"]
[Round "3.6"]
[White "Marcinczyk, Monika"]
[Black "Moscicka, Pola"]
[Result "1/2-1/2"]
[ECO "B18"]
[WhiteElo "1934"]
[BlackElo "1880"]
[Annotator "ChessBase"]
[PlyCount "55"]
[EventDate "2020.09.05"]
[EventType "team-tourn"]
[EventCountry "POL"]
[SourceTitle "playchess.com"]
[Source "ChessBase"]
[SourceQuality "1"]
[WhiteTeam "SSz Gminy Pawlowice"]
[BlackTeam "KS LAURA Chylice"]
[WhiteTeamCountry "POL"]
[BlackTeamCountry "POL"]
[TimeControl "40/5400+30:1800+30"]

1. e4 {[%emt 0:00:00]} c6 {[%emt 0:00:00]} 2. d4 {[%emt 0:00:00]} d5 {[%emt 0:00:00]} 3. Nc3 {[%emt 0:00:02]} dxe4 {[%emt 0:00:10]} 4. Nxe4 {[%emt 0:00:10]} Bf5 {[%emt 0:00:45]} 5. Ng3 {[%emt 0:00:16]} Bg6 {[%emt 0:00:09]} 6. h4 {[%emt 0:00:51]} h6 {[%emt 0:01:06]} 7. Nf3 {[%emt 0:00:40]} e6 {[%emt 0:06:01]} 8. h5 {[%emt 0:03:30]} Bh7 {[%emt 0:00:09]} 9. Bd3 {[%emt 0:02:08]} Bxd3 {[%emt 0:01:18]} 10. Qxd3 {[%emt 0:00:12]} Nf6 {[%emt 0:02:23]} 11. Bf4 {[%emt 0:10:46]} Bd6 {[%emt 0:02:55]} 12. Be5 {[%emt 0:01:36]} Bxe5 {[%emt 0:06:27]} 13. Nxe5 {[%emt 0:00:26]} Qd5 {[%emt 0:02:49]} 14. c4 {[%emt 0:11:04]} Qa5+ {[%emt 0:05:48]} 15. Qd2 {[%emt 0:02:32]} Qxd2+ {[%emt 0:03:21]} 16. Kxd2 {[%emt 0:02:09]} Nbd7 {[%emt 0:00:36]} 17. Kc3 {[%emt 0:00:52]} c5 {[%emt 0:03:00]} 18. Nxd7 {[%emt 0:02:27]} cxd4+ {[%emt 0:00:42]} 19. Kxd4 {[%emt 0:00:25]} O-O-O {[%emt 0:00:40]} 20. Kc3 {[%emt 0:02:43]} Rxd7 {[%emt 0:00:21]} 21. Rad1 {[%emt 0:00:44]} Rhd8 {[%emt 0:01:03]} 22. Rxd7 {[%emt 0:00:35]} Rxd7 {[%emt 0:00:05]} 23. f3 {[%emt 0:00:53]} Rc7 {[%emt 0:01:12]} 24. Kd4 {[%emt 0:00:55]} Rd7+ {[%emt 0:00:40]} 25. Ke3 {[%emt 0:00:47]} Rc7 {[%emt 0:00:15]} 26. Kd4 {[%emt 0:00:40]} Rd7+ {[%emt 0:00:29]} 27. Kc3 {[%emt 0:00:25]} Rc7 {[%emt 0:00:06]} 28. Kd4 {[%emt 0:00:32]} 1/2-1/2

[Event "POL-chT 1st League 2020"]
[Site "Ustron"]
[Date "2020.09.07"]
[Round "3.9"]
[White "Olsen, Filip Boe"]
[Black "Kozak, Antoni"]
[Result "1/2-1/2"]
[ECO "D02"]
[WhiteElo "2351"]
[BlackElo "2347"]
[Annotator "ChessBase"]
[PlyCount "99"]
[EventDate "2020.09.05"]
[EventType "team-tourn"]
[EventCountry "POL"]
[SourceTitle "playchess.com"]
[Source "ChessBase"]
[SourceQuality "1"]
[WhiteTeam "Sz.S.O.N. ZAGLEBIE Dabrowa G."]
[BlackTeam "LKSz GCKiP Czarna"]
[WhiteTeamCountry "DEN"]
[BlackTeamCountry "POL"]
[TimeControl "40/5400+30:1800+30"]

1. d4 {[%emt 0:00:00]} d5 {[%emt 0:00:00]} 2. Nf3 {[%emt 0:00:00]} Nf6 {[%emt 0:00:00]} 3. g3 {[%emt 0:00:00]} c6 {[%emt 0:04:55]} 4. Bg2 {[%emt 0:01:21]} Bf5 {[%emt 0:00:32]} 5. O-O {[%emt 0:00:45]} e6 {[%emt 0:00:06]} 6. b3 {[%emt 0:03:09]} h6 {[%emt 0:07:34]} 7. Bb2 {[%emt 0:00:59]} Nbd7 {[%emt 0:00:35]} 8. c4 {[%emt 0:01:00]} Be7 {[%emt 0:00:27]} 9. Nfd2 {[%emt 0:05:45]} O-O {[%emt 0:01:43]} 10. Nc3 {[%emt 0:00:28]} Re8 {[%emt 0:03:14]} 11. Re1 {[%emt 0:06:27]} a5 {[%emt 0:01:49]} 12. a3 {[%emt 0:04:05]} Qb6 {[%emt 0:05:15]} 13. c5 {[%emt 0:15:24]} Qc7 {[%emt 0:00:25]} 14. e4 {[%emt 0:03:59]} dxe4 {[%emt 0:00:43]} 15. Ncxe4 {[%emt 0:01:26]} Nxe4 {[%emt 0:00:06]} 16. Bxe4 {[%emt 0:00:14]} Bxe4 {[%emt 0:01:14]} 17. Nxe4 {[%emt 0:03:34]} Nf6 {[%emt 0:04:18]} 18. Nd2 {[%emt 0:00:48]} b5 {[%emt 0:01:57]} 19. a4 {[%emt 0:05:42]} Rab8 {[%emt 0:06:44]} 20. axb5 {[%emt 0:03:04]} Rxb5 {[%emt 0:00:08]} 21. Nc4 {[%emt 0:02:44]} Nd5 {[%emt 0:02:24]} 22. Bc1 {[%emt 0:05:18]} Reb8 {[%emt 0:02:21]} 23. Bd2 {[%emt 0:08:59]} Rxb3 {[%emt 0:08:47]} 24. Bxa5 {[%emt 0:09:39]} Qb7 {[%emt 0:00:06]} 25. Bb6 {[%emt 0:01:00]} Rb4 {[%emt 0:00:04]} 26. Ra7 {[%emt 0:00:55]} Qc8 {[%emt 0:00:04]} 27. Qd3 {[%emt 0:03:37]} Nxb6 {[%emt 0:07:05]} 28. Nxb6 {[%emt 0:03:50]} Qd8 {[%emt 0:01:59]} 29. Qc3 {[%emt 0:00:45]} Rb5 {[%emt 0:14:33]} 30. Qf3 {[%emt 0:01:17]} Qe8 {[%emt 0:03:04]} 31. Qf4 {[%emt 0:04:29]} Rd8 {[%emt 0:01:43]} 32. Rea1 {[%emt 0:00:19]} Bf6 {[%emt 0:04:14]} 33. Ra8 {[%emt 0:00:27]} Rxb6 {[%emt 0:00:04]} 34. Rxd8 {[%emt 0:00:06]} Qxd8 {[%emt 0:00:02]} 35. cxb6 {[%emt 0:00:12]} Qxb6 {[%emt 0:00:01]} 36. Qe4 {[%emt 0:02:00]} g6 {[%emt 0:00:38]} 37. Ra4 {[%emt 0:00:46]} Qb5 {[%emt 0:07:24]} 38. Ra8+ {[%emt 0:00:22]} Kg7 {[%emt 0:00:03]} 39. Rc8 {[%emt 0:02:47]} Qd5 {[%emt 0:00:05]} 40. Qc2 {[%emt 0:00:00]} Bxd4 {[%emt 0:00:00]} 41. Qxc6 {[%emt 0:02:35]} Qf5 {[%emt 0:00:44]} 42. Qc2 {[%emt 0:01:25]} Qf3 {[%emt 0:00:09]} 43. Qd2 {[%emt 0:01:42]} e5 {[%emt 0:06:28]} 44. Rc2 {[%emt 0:00:55]} h5 {[%emt 0:01:19]} 45. Qe2 {[%emt 0:00:26]} Qb7 {[%emt 0:00:16]} 46. h3 {[%emt 0:08:41]} Qb3 {[%emt 0:03:19]} 47. Kg2 {[%emt 0:00:38]} Qd5+ {[%emt 0:00:23]} 48. Kg1 {[%emt 0:01:25]} Qb3 {[%emt 0:00:11]} 49. Kg2 {[%emt 0:00:23]} Qd5+ {[%emt 0:00:05]} 50. Kg1 {[%emt 0:00:30]} 1/2-1/2